[Event "Early-Titled-Tuesday-Blitz-October-24-2023"]
[Site "Chess.com"]
[Date "2023.10.24"]
[Round "5"]
[White "Elsa167"]
[Black "Duhless"]
[Result "1/2-1/2"]
[WhiteElo "2871"]
[BlackElo "3084"]
[TimeControl "180+1"]
[EndTime "8:56:37 PDT"]
[Termination "Game drawn by repetition"]

1. d4 {[%clk 0:03:00.9]} 1... Nf6 {[%clk 0:02:59.2]} 2. c4 {[%clk 0:02:56.3]}
2... e6 {[%clk 0:02:59.2]} 3. Nf3 {[%clk 0:02:56.1]} 3... Bb4+ {[%clk
0:02:57.8]} 4. Nbd2 {[%clk 0:02:54.7]} 4... b6 {[%clk 0:02:57.5]} 5. a3 {[%clk
0:02:54.2]} 5... Bxd2+ {[%clk 0:02:57.2]} 6. Qxd2 {[%clk 0:02:55.1]} 6... O-O
{[%clk 0:02:55.9]} 7. e3 {[%clk 0:02:54.5]} 7... d5 {[%clk 0:02:54.5]} 8. b3
{[%clk 0:02:54.6]} 8... c5 {[%clk 0:02:53.1]} 9. Bb2 {[%clk 0:02:46.1]} 9... Ba6
{[%clk 0:02:48.1]} 10. Bd3 {[%clk 0:02:40.5]} 10... Nc6 {[%clk 0:02:41]} 11.
cxd5 {[%clk 0:02:18.4]} 11... Bxd3 {[%clk 0:02:40.4]} 12. dxc6 {[%clk 0:02:19]}
12... c4 {[%clk 0:02:12]} 13. Ne5 {[%clk 0:01:42.9]} 13... Ne4 {[%clk
0:01:47.4]} 14. Qd1 {[%clk 0:01:42.5]} 14... Qg5 {[%clk 0:01:34.1]} 15. Qf3
{[%clk 0:01:02.2]} 15... Nd6 {[%clk 0:01:26.9]} 16. Nxd3 {[%clk 0:00:50.1]}
16... cxd3 {[%clk 0:01:27.8]} 17. O-O {[%clk 0:00:50.4]} 17... Rac8 {[%clk
0:01:00.9]} 18. Rfd1 {[%clk 0:00:48.8]} 18... Qb5 {[%clk 0:00:58.6]} 19. a4
{[%clk 0:00:33.6]} 19... Qxb3 {[%clk 0:00:29]} 20. Ba3 {[%clk 0:00:33.9]} 20...
Rfd8 {[%clk 0:00:29.3]} 21. Bxd6 {[%clk 0:00:31.4]} 21... Rxd6 {[%clk
0:00:28.8]} 22. Qe4 {[%clk 0:00:25.5]} 22... Rdxc6 {[%clk 0:00:23.3]} 23. Qxd3
{[%clk 0:00:25.4]} 23... Rc3 {[%clk 0:00:16.2]} 24. Qb5 {[%clk 0:00:24.1]} 24...
h6 {[%clk 0:00:07.9]} 25. g3 {[%clk 0:00:24.4]} 25... Qc2 {[%clk 0:00:06.5]} 26.
a5 {[%clk 0:00:21.6]} 26... bxa5 {[%clk 0:00:05.5]} 27. Qxa5 {[%clk 0:00:22.1]}
27... R8c7 {[%clk 0:00:04.7]} 28. Qa4 {[%clk 0:00:20.8]} 28... Qe4 {[%clk
0:00:04.3]} 29. Qb5 {[%clk 0:00:09.9]} 29... Kh7 {[%clk 0:00:03.8]} 30. Qf1
{[%clk 0:00:06.6]} 30... Rc2 {[%clk 0:00:03]} 31. Qg2 {[%clk 0:00:06.9]} 31...
Qf5 {[%clk 0:00:03.6]} 32. Qf1 {[%clk 0:00:05.1]} 32... Rb7 {[%clk 0:00:03.6]}
33. Rac1 {[%clk 0:00:04.7]} 33... Rbb2 {[%clk 0:00:03.3]} 34. Rxc2 {[%clk
0:00:05.1]} 34... Qxc2 {[%clk 0:00:02.8]} 35. Qd3+ {[%clk 0:00:04.9]} 35... Qxd3
{[%clk 0:00:02.9]} 36. Rxd3 {[%clk 0:00:05.8]} 36... a5 {[%clk 0:00:02.7]} 37.
Rc3 {[%clk 0:00:04.2]} 37... Rb5 {[%clk 0:00:03.1]} 38. Rc7 {[%clk 0:00:04.2]}
38... Kg6 {[%clk 0:00:03.2]} 39. Ra7 {[%clk 0:00:04.7]} 39... e5 {[%clk
0:00:03.2]} 40. dxe5 {[%clk 0:00:04]} 40... Rxe5 {[%clk 0:00:04.1]} 41. Kg2
{[%clk 0:00:04.4]} 41... Rb5 {[%clk 0:00:04.4]} 42. f4 {[%clk 0:00:04.8]} 42...
h5 {[%clk 0:00:04.3]} 43. Kf3 {[%clk 0:00:05.4]} 43... Kf6 {[%clk 0:00:04.6]}
44. h3 {[%clk 0:00:05.6]} 44... g6 {[%clk 0:00:05]} 45. g4 {[%clk 0:00:06.1]}
45... hxg4+ {[%clk 0:00:05.4]} 46. hxg4 {[%clk 0:00:07]} 46... g5 {[%clk
0:00:05.7]} 47. Ke4 {[%clk 0:00:06.8]} 47... gxf4 {[%clk 0:00:05.6]} 48. exf4
{[%clk 0:00:07.7]} 48... Rb4+ {[%clk 0:00:06]} 49. Kf3 {[%clk 0:00:08.3]} 49...
a4 {[%clk 0:00:06.6]} 50. g5+ {[%clk 0:00:08.7]} 50... Kg6 {[%clk 0:00:06.4]}
51. Kg4 {[%clk 0:00:08.7]} 51... Kg7 {[%clk 0:00:06.2]} 52. Kf5 {[%clk
0:00:08.7]} 52... Rb5+ {[%clk 0:00:06.3]} 53. Ke4 {[%clk 0:00:09.3]} 53... Rb4+
{[%clk 0:00:06.7]} 54. Ke5 {[%clk 0:00:09.9]} 54... Rb5+ {[%clk 0:00:07]} 55.
Ke4 {[%clk 0:00:09.6]} 55... Rb4+ {[%clk 0:00:07.4]} 56. Kf5 {[%clk 0:00:10.3]}
56... Rc4 {[%clk 0:00:06.4]} 57. Ke5 {[%clk 0:00:08.8]} 57... Rc5+ {[%clk
0:00:05.4]} 58. Kd4 {[%clk 0:00:08.6]} 58... Rf5 {[%clk 0:00:05.4]} 59. Ke4
{[%clk 0:00:09.2]} 59... Rb5 {[%clk 0:00:05.9]} 60. Rxa4 {[%clk 0:00:09.7]}
60... Rc5 {[%clk 0:00:05.6]} 61. Ra6 {[%clk 0:00:10.2]} 61... Rb5 {[%clk
0:00:05.6]} 62. Kf3 {[%clk 0:00:10.7]} 62... Rb1 {[%clk 0:00:05.2]} 63. Kg4
{[%clk 0:00:11]} 63... Rg1+ {[%clk 0:00:05.3]} 64. Kf5 {[%clk 0:00:11.5]} 64...
Rb1 {[%clk 0:00:06]} 65. Ra4 {[%clk 0:00:10.8]} 65... Rb5+ {[%clk 0:00:05.9]}
66. Kg4 {[%clk 0:00:11.3]} 66... Rb7 {[%clk 0:00:06]} 67. f5 {[%clk 0:00:11.2]}
67... Rb1 {[%clk 0:00:06]} 68. Ra7 {[%clk 0:00:07.4]} 68... Rg1+ {[%clk
0:00:05.9]} 69. Kf4 {[%clk 0:00:07.7]} 69... Rf1+ {[%clk 0:00:06.4]} 70. Ke5
{[%clk 0:00:08.3]} 70... Re1+ {[%clk 0:00:06.6]} 71. Kd4 {[%clk 0:00:06.4]}
71... Rd1+ {[%clk 0:00:06.8]} 72. Ke3 {[%clk 0:00:06.9]} 72... Re1+ {[%clk
0:00:06.8]} 73. Kf4 {[%clk 0:00:03.9]} 73... Rf1+ {[%clk 0:00:06.4]} 74. Kg4
{[%clk 0:00:04.4]} 74... Rg1+ {[%clk 0:00:06.8]} 75. Kf4 {[%clk 0:00:05]} 75...
Rf1+ {[%clk 0:00:07.2]} 1/2-1/2

[Event "Early-Titled-Tuesday-Blitz-October-24-2023"]
[Site "Chess.com"]
[Date "2023.10.24"]
[Round "5"]
[White "MikeSailer"]
[Black "AnaKuchava"]
[Result "1/2-1/2"]
[WhiteElo "2038"]
[BlackElo "2225"]
[TimeControl "180+1"]
[EndTime "8:56:39 PDT"]
[Termination "Game drawn by repetition"]

1. d4 {[%clk 0:02:59.9]} 1... d5 {[%clk 0:02:59.7]} 2. Bf4 {[%clk 0:02:52.4]}
2... c5 {[%clk 0:02:47.5]} 3. e3 {[%clk 0:02:50.2]} 3... cxd4 {[%clk 0:02:43.4]}
4. exd4 {[%clk 0:02:50.4]} 4... Nc6 {[%clk 0:02:41.4]} 5. Nc3 {[%clk 0:02:50.7]}
5... Bf5 {[%clk 0:02:30.3]} 6. Nf3 {[%clk 0:02:46.2]} 6... e6 {[%clk 0:02:27.4]}
7. Bb5 {[%clk 0:02:38.7]} 7... Bd6 {[%clk 0:02:23.3]} 8. Ne5 {[%clk 0:02:37.3]}
8... Rc8 {[%clk 0:02:20.1]} 9. O-O {[%clk 0:02:07.4]} 9... Nf6 {[%clk
0:02:11.4]} 10. Ne2 {[%clk 0:01:35.6]} 10... h6 {[%clk 0:02:06.3]} 11. Ng3
{[%clk 0:01:25.4]} 11... Bh7 {[%clk 0:02:04.9]} 12. Nh5 {[%clk 0:01:18]} 12...
Nxh5 {[%clk 0:01:58.5]} 13. Qxh5 {[%clk 0:01:17]} 13... O-O {[%clk 0:01:58.4]}
14. c3 {[%clk 0:01:05.7]} 14... Nxe5 {[%clk 0:01:24.1]} 15. dxe5 {[%clk
0:01:04.2]} 15... Be7 {[%clk 0:01:23.7]} 16. Rad1 {[%clk 0:01:01]} 16... Bg5
{[%clk 0:01:20.6]} 17. Bg3 {[%clk 0:00:56.1]} 17... Bg6 {[%clk 0:01:17.7]} 18.
Qe2 {[%clk 0:00:54.5]} 18... Qb6 {[%clk 0:01:14.7]} 19. Bd3 {[%clk 0:00:46.6]}
19... Bxd3 {[%clk 0:01:10.7]} 20. Rxd3 {[%clk 0:00:46.3]} 20... Rc4 {[%clk
0:01:08.2]} 21. Kh1 {[%clk 0:00:45.9]} 21... Rfc8 {[%clk 0:01:06.1]} 22. f4
{[%clk 0:00:42.3]} 22... Be7 {[%clk 0:01:04.3]} 23. f5 {[%clk 0:00:42.2]} 23...
Re4 {[%clk 0:01:02.9]} 24. Qf2 {[%clk 0:00:31.4]} 24... Qxf2 {[%clk 0:01:01.5]}
25. Bxf2 {[%clk 0:00:26.5]} 25... Rxe5 {[%clk 0:01:00.7]} 26. fxe6 {[%clk
0:00:26.6]} 26... fxe6 {[%clk 0:01:00.4]} 27. Bxa7 {[%clk 0:00:26.7]} 27... Re2
{[%clk 0:00:52.2]} 28. Re3 {[%clk 0:00:21.2]} 28... Rxe3 {[%clk 0:00:47.8]} 29.
Bxe3 {[%clk 0:00:20.6]} 29... Rc4 {[%clk 0:00:43.8]} 30. Kg1 {[%clk 0:00:19.5]}
30... b5 {[%clk 0:00:42.1]} 31. a3 {[%clk 0:00:18.4]} 31... Re4 {[%clk
0:00:41.2]} 32. Kf2 {[%clk 0:00:17.1]} 32... Bd6 {[%clk 0:00:38.1]} 33. g3
{[%clk 0:00:15.4]} 33... e5 {[%clk 0:00:34.3]} 34. Rd1 {[%clk 0:00:14.4]} 34...
d4 {[%clk 0:00:28.4]} 35. cxd4 {[%clk 0:00:14.6]} 35... exd4 {[%clk 0:00:28.1]}
36. Rxd4 {[%clk 0:00:14.9]} 36... Re6 {[%clk 0:00:28.2]} 37. Rd5 {[%clk
0:00:14]} 37... b4 {[%clk 0:00:28.5]} 38. a4 {[%clk 0:00:14.1]} 38... Be7 {[%clk
0:00:24]} 39. a5 {[%clk 0:00:12.7]} 39... Ra6 {[%clk 0:00:21.2]} 40. Bb6 {[%clk
0:00:12.5]} 40... Kf7 {[%clk 0:00:21.1]} 41. Rd7 {[%clk 0:00:09.6]} 41... Ke6
{[%clk 0:00:20.6]} 42. Rb7 {[%clk 0:00:09.6]} 42... g5 {[%clk 0:00:15.8]} 43.
Ke2 {[%clk 0:00:09]} 43... Bd6 {[%clk 0:00:15.1]} 44. Kd3 {[%clk 0:00:08.3]}
44... Kd5 {[%clk 0:00:15.7]} 45. b3 {[%clk 0:00:07.5]} 45... Kc6 {[%clk
0:00:15.2]} 46. Rh7 {[%clk 0:00:06.5]} 46... Bc5 {[%clk 0:00:12.6]} 47. Bxc5
{[%clk 0:00:04.6]} 47... Kxc5 {[%clk 0:00:12.4]} 48. h4 {[%clk 0:00:03.3]} 48...
gxh4 {[%clk 0:00:12.1]} 49. gxh4 {[%clk 0:00:03.6]} 49... Kb5 {[%clk 0:00:12.7]}
50. Rf7 {[%clk 0:00:01.8]} 50... Kxa5 {[%clk 0:00:13]} 51. Rf5+ {[%clk
0:00:02.3]} 51... Kb6 {[%clk 0:00:12.9]} 52. h5 {[%clk 0:00:03]} 52... Kc7
{[%clk 0:00:12.6]} 53. Rf7+ {[%clk 0:00:03.4]} 53... Kd8 {[%clk 0:00:12.8]} 54.
Rg7 {[%clk 0:00:04]} 54... Re6 {[%clk 0:00:12.6]} 55. Kc4 {[%clk 0:00:04.4]}
55... Re4+ {[%clk 0:00:11.4]} 56. Kb5 {[%clk 0:00:04.8]} 56... Re5+ {[%clk
0:00:10.9]} 57. Kxb4 {[%clk 0:00:04.8]} 57... Rxh5 {[%clk 0:00:11.8]} 58. Kc4
{[%clk 0:00:04.6]} 58... Rg5 {[%clk 0:00:10.6]} 59. Rh7 {[%clk 0:00:04.1]} 59...
h5 {[%clk 0:00:10.7]} 60. b4 {[%clk 0:00:04.5]} 60... Kc8 {[%clk 0:00:10.6]} 61.
b5 {[%clk 0:00:04.8]} 61... Kb8 {[%clk 0:00:11]} 62. Kb4 {[%clk 0:00:05.5]}
62... Rg4+ {[%clk 0:00:10.1]} 63. Ka5 {[%clk 0:00:05.9]} 63... h4 {[%clk
0:00:07]} 64. Kb6 {[%clk 0:00:04.8]} 64... Rg6+ {[%clk 0:00:07]} 65. Ka5 {[%clk
0:00:05.1]} 65... Rg4 {[%clk 0:00:07.3]} 66. b6 {[%clk 0:00:05.1]} 66... Rg1
{[%clk 0:00:06.8]} 67. Rxh4 {[%clk 0:00:03.8]} 67... Ra1+ {[%clk 0:00:06.9]} 68.
Kb5 {[%clk 0:00:04.2]} 68... Rb1+ {[%clk 0:00:07]} 69. Ka5 {[%clk 0:00:04.7]}
69... Ra1+ {[%clk 0:00:07.4]} 70. Kb5 {[%clk 0:00:05.3]} 70... Rb1+ {[%clk
0:00:07.9]} 71. Ka5 {[%clk 0:00:06]} 71... Ra1+ {[%clk 0:00:08.5]} 1/2-1/2

[Event "Early-Titled-Tuesday-Blitz-October-24-2023"]
[Site "Chess.com"]
[Date "2023.10.24"]
[Round "5"]
[White "FGHSMN"]
[Black "DefiantChair"]
[Result "0-1"]
[WhiteElo "2880"]
[BlackElo "2664"]
[TimeControl "180+1"]
[EndTime "8:57:28 PDT"]
[Termination "DefiantChair won by checkmate"]

1. c4 {[%clk 0:02:59.9]} 1... e6 {[%clk 0:02:59]} 2. Nc3 {[%clk 0:02:58]} 2...
Nf6 {[%clk 0:02:59.3]} 3. Nf3 {[%clk 0:02:56.3]} 3... d5 {[%clk 0:02:59.4]} 4.
e3 {[%clk 0:02:55]} 4... c5 {[%clk 0:02:59.4]} 5. d4 {[%clk 0:02:54.7]} 5... Nc6
{[%clk 0:02:57.3]} 6. a3 {[%clk 0:02:54.6]} 6... b6 {[%clk 0:02:54.4]} 7. cxd5
{[%clk 0:02:52.3]} 7... exd5 {[%clk 0:02:54.5]} 8. Bb5 {[%clk 0:02:53]} 8... Bd7
{[%clk 0:02:51.2]} 9. O-O {[%clk 0:02:42.7]} 9... a6 {[%clk 0:02:41.5]} 10. Be2
{[%clk 0:02:41.6]} 10... cxd4 {[%clk 0:02:25.5]} 11. Nxd4 {[%clk 0:02:41.4]}
11... Nxd4 {[%clk 0:02:25.5]} 12. Qxd4 {[%clk 0:02:40.4]} 12... Bc5 {[%clk
0:02:25.5]} 13. Qd1 {[%clk 0:02:38.8]} 13... Be6 {[%clk 0:02:20.6]} 14. b4
{[%clk 0:02:39]} 14... Be7 {[%clk 0:02:19.1]} 15. Bb2 {[%clk 0:02:39.2]} 15...
O-O {[%clk 0:02:18.6]} 16. Bf3 {[%clk 0:02:39.8]} 16... a5 {[%clk 0:02:02.4]}
17. b5 {[%clk 0:02:38.2]} 17... Qd7 {[%clk 0:01:55.5]} 18. Qd4 {[%clk
0:02:19.9]} 18... Bc5 {[%clk 0:01:49.4]} 19. Qd3 {[%clk 0:02:20.2]} 19... Rad8
{[%clk 0:01:20.7]} 20. Na4 {[%clk 0:02:19.7]} 20... Bf5 {[%clk 0:01:15]} 21. Qb3
{[%clk 0:02:15.3]} 21... d4 {[%clk 0:01:06.5]} 22. exd4 {[%clk 0:02:01.7]} 22...
Be6 {[%clk 0:00:54.4]} 23. Nxc5 {[%clk 0:01:56.5]} 23... bxc5 {[%clk 0:00:52.2]}
24. Qa4 {[%clk 0:01:57.1]} 24... cxd4 {[%clk 0:00:50.2]} 25. Qxa5 {[%clk
0:01:54.9]} 25... Bc4 {[%clk 0:00:42.7]} 26. Bc6 {[%clk 0:01:53.4]} 26... Qf5
{[%clk 0:00:39.5]} 27. Rfd1 {[%clk 0:01:53.9]} 27... Ne4 {[%clk 0:00:34.5]} 28.
Qe1 {[%clk 0:01:48.2]} 28... Nc3 {[%clk 0:00:33.2]} 29. Bxc3 {[%clk 0:01:41]}
29... dxc3 {[%clk 0:00:30.4]} 30. Qxc3 {[%clk 0:01:33.3]} 30... Bxb5 {[%clk
0:00:29.2]} 31. Rxd8 {[%clk 0:01:23.6]} 31... Rxd8 {[%clk 0:00:28.6]} 32. Bxb5
{[%clk 0:01:18.5]} 32... Qxb5 {[%clk 0:00:28]} 33. h3 {[%clk 0:01:17.4]} 33...
h6 {[%clk 0:00:28]} 34. a4 {[%clk 0:01:17]} 34... Qa6 {[%clk 0:00:27.8]} 35. a5
{[%clk 0:01:17.6]} 35... Rd5 {[%clk 0:00:22.1]} 36. Qb4 {[%clk 0:01:11.3]} 36...
Rg5 {[%clk 0:00:16.8]} 37. h4 {[%clk 0:01:09.9]} 37... Rg6 {[%clk 0:00:16.6]}
38. Qd4 {[%clk 0:01:03.3]} 38... Qa8 {[%clk 0:00:15.3]} 39. g3 {[%clk
0:01:03.6]} 39... Ra6 {[%clk 0:00:13.9]} 40. Qc5 {[%clk 0:01:03.9]} 40... Kh7
{[%clk 0:00:13.6]} 41. Ra3 {[%clk 0:01:01]} 41... Re6 {[%clk 0:00:12.6]} 42.
Qc2+ {[%clk 0:00:58.2]} 42... g6 {[%clk 0:00:12.2]} 43. Qd2 {[%clk 0:00:57]}
43... Re5 {[%clk 0:00:11.1]} 44. a6 {[%clk 0:00:56.2]} 44... Rd5 {[%clk
0:00:11.5]} 45. Qe1 {[%clk 0:00:54.3]} 45... Rd6 {[%clk 0:00:11.2]} 46. a7
{[%clk 0:00:54.5]} 46... Rd7 {[%clk 0:00:09.9]} 47. Qa1 {[%clk 0:00:53.7]} 47...
h5 {[%clk 0:00:09.5]} 48. Ra5 {[%clk 0:00:53.2]} 48... Re7 {[%clk 0:00:08.7]}
49. Ra3 {[%clk 0:00:48.4]} 49... Rd7 {[%clk 0:00:08.5]} 50. f3 {[%clk
0:00:46.8]} 50... Rd2 {[%clk 0:00:08.2]} 51. Qc3 {[%clk 0:00:45.6]} 51... Rd1+
{[%clk 0:00:06.7]} 52. Kf2 {[%clk 0:00:44.9]} 52... Rd7 {[%clk 0:00:07.5]} 53.
Qc5 {[%clk 0:00:44.1]} 53... Rb7 {[%clk 0:00:07.1]} 54. Qd4 {[%clk 0:00:43.1]}
54... Rc7 {[%clk 0:00:07.2]} 55. Qb6 {[%clk 0:00:42.7]} 55... Rb7 {[%clk
0:00:07.5]} 56. Qxb7 {[%clk 0:00:41.9]} 56... Qxb7 {[%clk 0:00:06.7]} 57. a8=Q
{[%clk 0:00:42.3]} 57... Qb2+ {[%clk 0:00:06.9]} 58. Kg1 {[%clk 0:00:39]} 58...
Qc1+ {[%clk 0:00:06.7]} 59. Kg2 {[%clk 0:00:39.7]} 59... Qc2+ {[%clk 0:00:07]}
60. Kh3 {[%clk 0:00:40.3]} 60... Qf5+ {[%clk 0:00:07.4]} 61. g4 {[%clk
0:00:39.4]} 61... Qb1 {[%clk 0:00:05.2]} 62. gxh5 {[%clk 0:00:22.8]} 62... Qh1+
{[%clk 0:00:05]} 63. Kg3 {[%clk 0:00:23.5]} 63... Qg1+ {[%clk 0:00:04.2]} 64.
Kf4 {[%clk 0:00:23.5]} 64... Qd4+ {[%clk 0:00:04.6]} 65. Kg3 {[%clk 0:00:18.9]}
65... Qg1+ {[%clk 0:00:04.9]} 66. Kh3 {[%clk 0:00:19.6]} 66... Qh1+ {[%clk
0:00:05.1]} 67. Kg4 {[%clk 0:00:20.3]} 67... Qg1+ {[%clk 0:00:03.9]} 68. Kf4
{[%clk 0:00:20.9]} 68... Qd4+ {[%clk 0:00:04.1]} 69. Qe4 {[%clk 0:00:19.6]}
69... Qd6+ {[%clk 0:00:03.7]} 70. Kg4 {[%clk 0:00:13.5]} 70... f5+ {[%clk
0:00:03.5]} 71. Kg5 {[%clk 0:00:13.5]} 71... fxe4 {[%clk 0:00:03.7]} 72. Ra7+
{[%clk 0:00:14.2]} 72... Kg8 {[%clk 0:00:04]} 73. hxg6 {[%clk 0:00:12.5]} 73...
Qc5+ {[%clk 0:00:04.1]} 74. Kg4 {[%clk 0:00:10]} 74... Qxa7 {[%clk 0:00:05]} 75.
fxe4 {[%clk 0:00:10.9]} 75... Qd7+ {[%clk 0:00:05.6]} 76. Kg5 {[%clk 0:00:11]}
76... Qe6 {[%clk 0:00:06.5]} 77. h5 {[%clk 0:00:10.8]} 77... Qxe4 {[%clk
0:00:06.9]} 78. h6 {[%clk 0:00:11.5]} 78... Qe5+ {[%clk 0:00:07.7]} 79. Kg4
{[%clk 0:00:11.6]} 79... Qe6+ {[%clk 0:00:08]} 80. Kg5 {[%clk 0:00:11.9]} 80...
Qe5+ {[%clk 0:00:08.6]} 81. Kg4 {[%clk 0:00:12.5]} 81... Qf6 {[%clk 0:00:09]}
82. h7+ {[%clk 0:00:11.2]} 82... Kg7 {[%clk 0:00:08.8]} 83. Kh3 {[%clk
0:00:11.9]} 83... Qxg6 {[%clk 0:00:09]} 84. Kh2 {[%clk 0:00:12.8]} 84... Kxh7
{[%clk 0:00:09.3]} 85. Kh3 {[%clk 0:00:13.7]} 85... Kg7 {[%clk 0:00:10.2]} 86.
Kh2 {[%clk 0:00:14.6]} 86... Kf6 {[%clk 0:00:11.1]} 87. Kh3 {[%clk 0:00:15.5]}
87... Kf5 {[%clk 0:00:12]} 88. Kh2 {[%clk 0:00:16.4]} 88... Kf4 {[%clk
0:00:12.9]} 89. Kh3 {[%clk 0:00:17.3]} 89... Kf3 {[%clk 0:00:13.8]} 90. Kh2
{[%clk 0:00:18.2]} 90... Qg2# {[%clk 0:00:14.1]} 0-1

[Event "Early-Titled-Tuesday-Blitz-October-24-2023"]
[Site "Chess.com"]
[Date "2023.10.24"]
[Round "6"]
[White "publicaccountcze"]
[Black "vaniavindy"]
[Result "1-0"]
[WhiteElo "2318"]
[BlackElo "2157"]
[TimeControl "180+1"]
[EndTime "8:58:56 PDT"]
[Termination "publicaccountcze won by checkmate"]

1. e4 {[%clk 0:03:00.9]} 1... c6 {[%clk 0:02:56.9]} 2. d4 {[%clk 0:03:00.5]}
2... d5 {[%clk 0:02:57.4]} 3. f3 {[%clk 0:03:01.2]} 3... dxe4 {[%clk 0:02:56.8]}
4. fxe4 {[%clk 0:03:02.1]} 4... e5 {[%clk 0:02:57.2]} 5. Nf3 {[%clk 0:03:02.7]}
5... exd4 {[%clk 0:02:56.9]} 6. Bc4 {[%clk 0:03:02.7]} 6... Bd6 {[%clk 0:02:52]}
7. e5 {[%clk 0:02:50.5]} 7... Bxe5 {[%clk 0:02:49.4]} 8. Nxe5 {[%clk 0:02:43.4]}
8... Qa5+ {[%clk 0:02:49.6]} 9. Kf2 {[%clk 0:02:36.3]} 9... Qxe5 {[%clk
0:02:50.5]} 10. Re1 {[%clk 0:02:35.5]} 10... f6 {[%clk 0:02:51.1]} 11. Rxe5+
{[%clk 0:02:35.3]} 11... fxe5 {[%clk 0:02:52]} 12. Qh5+ {[%clk 0:02:34.6]} 12...
Kf8 {[%clk 0:02:50.9]} 13. Qf7# {[%clk 0:02:34.4]} 1-0

[Event "Early-Titled-Tuesday-Blitz-October-24-2023"]
[Site "Chess.com"]
[Date "2023.10.24"]
[Round "6"]
[White "Alexchess1984"]
[Black "jup1978"]
[Result "1-0"]
[WhiteElo "2708"]
[BlackElo "2493"]
[TimeControl "180+1"]
[EndTime "9:00:35 PDT"]
[Termination "Alexchess1984 won by resignation"]

1. e4 {[%clk 0:03:00.4]} 1... e5 {[%clk 0:02:58.6]} 2. Nc3 {[%clk 0:02:56.1]}
2... Nf6 {[%clk 0:02:58.6]} 3. d4 {[%clk 0:02:55.9]} 3... exd4 {[%clk
0:02:56.9]} 4. Qxd4 {[%clk 0:02:56.8]} 4... Nc6 {[%clk 0:02:56.4]} 5. Qd3 {[%clk
0:02:56.6]} 5... g6 {[%clk 0:02:55.1]} 6. f3 {[%clk 0:02:50.7]} 6... Bg7 {[%clk
0:02:54.7]} 7. Bg5 {[%clk 0:02:50.4]} 7... O-O {[%clk 0:02:53.6]} 8. O-O-O
{[%clk 0:02:50.1]} 8... h6 {[%clk 0:02:53.2]} 9. Be3 {[%clk 0:02:47.7]} 9... d6
{[%clk 0:02:53.3]} 10. Qd2 {[%clk 0:02:47.5]} 10... Kh7 {[%clk 0:02:52.7]} 11.
h4 {[%clk 0:02:45.4]} 11... Be6 {[%clk 0:02:50]} 12. Nh3 {[%clk 0:02:37.7]}
12... a6 {[%clk 0:02:48.8]} 13. Ng5+ {[%clk 0:02:36.4]} 13... hxg5 {[%clk
0:02:42.4]} 14. hxg5+ {[%clk 0:02:37.3]} 14... Kg8 {[%clk 0:02:38.9]} 15. g4
{[%clk 0:02:36.1]} 15... Re8 {[%clk 0:02:31.2]} 16. gxf6 {[%clk 0:02:25.6]}
16... Qxf6 {[%clk 0:02:32.1]} 17. g5 {[%clk 0:02:13.9]} 17... Qe5 {[%clk
0:02:26.3]} 18. Kb1 {[%clk 0:01:54.9]} 18... b5 {[%clk 0:02:24.9]} 19. f4 {[%clk
0:01:50.5]} 1-0

[Event "Early-Titled-Tuesday-Blitz-October-24-2023"]
[Site "Chess.com"]
[Date "2023.10.24"]
[Round "6"]
[White "jraosam"]
[Black "Fuzesabonyilaci"]
[Result "1-0"]
[WhiteElo "2151"]
[BlackElo "2355"]
[TimeControl "180+1"]
[EndTime "9:01:18 PDT"]
[Termination "jraosam won by resignation"]

1. e4 {[%clk 0:03:00.9]} 1... e6 {[%clk 0:02:58.2]} 2. d4 {[%clk 0:03:00.9]}
2... d5 {[%clk 0:02:55.6]} 3. Nc3 {[%clk 0:03:01.2]} 3... dxe4 {[%clk
0:02:55.9]} 4. Nxe4 {[%clk 0:03:02.1]} 4... Nd7 {[%clk 0:02:56.2]} 5. Nf3 {[%clk
0:03:00.6]} 5... Ngf6 {[%clk 0:02:55.9]} 6. Nxf6+ {[%clk 0:03:00.9]} 6... Nxf6
{[%clk 0:02:56.6]} 7. c3 {[%clk 0:02:59]} 7... Be7 {[%clk 0:02:56.8]} 8. Bc4
{[%clk 0:02:56.2]} 8... O-O {[%clk 0:02:55.2]} 9. O-O {[%clk 0:02:56.5]} 9... b6
{[%clk 0:02:54.9]} 10. Ne5 {[%clk 0:02:56.5]} 10... Bb7 {[%clk 0:02:55.3]} 11.
Qe2 {[%clk 0:02:56.6]} 11... c5 {[%clk 0:02:54.1]} 12. dxc5 {[%clk 0:02:55.2]}
12... bxc5 {[%clk 0:02:52.6]} 13. Bg5 {[%clk 0:02:52.7]} 13... h6 {[%clk
0:02:49.9]} 14. Bxf6 {[%clk 0:02:52.2]} 14... Bxf6 {[%clk 0:02:50.8]} 15. Rad1
{[%clk 0:02:51.4]} 15... Bd5 {[%clk 0:02:43.5]} 16. Ng4 {[%clk 0:02:33.1]} 16...
Re8 {[%clk 0:02:18.3]} 17. Bb5 {[%clk 0:02:25.4]} 17... Rf8 {[%clk 0:02:11.1]}
18. c4 {[%clk 0:02:25.1]} 18... a6 {[%clk 0:02:06.5]} 19. Ba4 {[%clk 0:02:20.3]}
19... Qa5 {[%clk 0:02:04.4]} 20. Nxf6+ {[%clk 0:02:07.9]} 20... gxf6 {[%clk
0:02:04.5]} 21. Qg4+ {[%clk 0:02:07.7]} 21... Kh8 {[%clk 0:02:00.9]} 22. cxd5
{[%clk 0:02:07.6]} 22... f5 {[%clk 0:01:42.4]} 23. Qh4 {[%clk 0:02:07.1]} 23...
Kh7 {[%clk 0:01:40]} 24. dxe6 {[%clk 0:02:01.7]} 1-0

[Event "Early-Titled-Tuesday-Blitz-October-24-2023"]
[Site "Chess.com"]
[Date "2023.10.24"]
[Round "6"]
[White "Mikhail_Golubev"]
[Black "GM_DarwinLaylo"]
[Result "1-0"]
[WhiteElo "2537"]
[BlackElo "2623"]
[TimeControl "180+1"]
[EndTime "9:02:06 PDT"]
[Termination "Mikhail_Golubev won on time"]

1. e4 {[%clk 0:03:00.9]} 1... d5 {[%clk 0:00:01.5]} 2. exd5 {[%clk 0:02:55.2]}
2... Nf6 {[%clk 0:00:02]} 3. Nf3 {[%clk 0:02:54.7]} 3... Nxd5 {[%clk 0:00:02.1]}
4. d4 {[%clk 0:02:54.5]} 4... Nc6 {[%clk 0:00:02.3]} 5. Bc4 {[%clk 0:02:48.3]}
5... Bg4 {[%clk 0:00:02.2]} 6. O-O {[%clk 0:02:45.8]} 6... e6 {[%clk 0:00:02.1]}
7. c3 {[%clk 0:02:35.8]} 7... Be7 {[%clk 0:00:02.4]} 8. Nbd2 {[%clk 0:02:33.9]}
8... O-O {[%clk 0:00:02.8]} 9. h3 {[%clk 0:02:33.5]} 9... Bh5 {[%clk 0:00:02.8]}
10. Re1 {[%clk 0:02:33.9]} 10... a6 {[%clk 0:00:01.6]} 11. Nf1 {[%clk
0:02:29.7]} 11... Bg6 {[%clk 0:00:01.7]} 12. Ng3 {[%clk 0:02:27.4]} 12... b5
{[%clk 0:00:02.1]} 13. Bd3 {[%clk 0:02:24.1]} 13... Na5 {[%clk 0:00:02.2]} 14.
Ne4 {[%clk 0:02:18.2]} 1-0